bitfinex-derivatives/quotes_SOLF0:USTF0_20241127
["timestamp","ask_amount","ask_price","bid_price","bid_amount"]
[1732735877592,1.284,239.9,239.84,6.4021386]
[1732735878092,2.0819,239.89,239.84,6.4021386]
[1732735878396,1.284,239.9,239.84,6.4021386]
[1732735879193,1.284,239.9,239.86,6.4021386]
[1732735879390,1.284,239.9,239.84,8.4843386]
[1732735880397,33.44600098,239.98,239.88,6.4021386]
[1732735880398,6.4021386,239.95,239.88,6.4021386]
[1732735880698,8.55505122,239.94,239.88,6.4021386]
[1732735880896,6.4021386,239.95,239.88,6.4021386]
[1732735881093,33.44600098,239.98,239.88,6.4021386]
[1732735881289,6.4021386,239.97,239.88,6.4021386]
[1732735881499,2.0818,239.9,239.88,6.4021386]
[1732735881794,33.44600098,239.98,239.88,6.4021386]
[1732735881995,2.0815,239.93,239.9,6.4021386]
[1732735882199,33.44600098,239.98,239.92,6.4021386]
[1732735882589,2.0814,239.95,239.92,6.4021386]
[1732735882791,338.19174,239.99,239.92,6.4021386]
[1732735883400,338.19174,239.99,239.92,8.4837386]
[1732735883596,335.61384,239.99,239.94,6.4021386]
[1732735883899,2.0811,239.98,239.96,6.4021386]
[1732735884497,335.61384,239.99,239.96,6.4021386]
[1732735884498,2.0811,239.97,239.96,6.4021386]
[1732735884798,2.0811,239.97,239.95,3.0]
[1732735886701,335.61384,239.99,239.95,3.0]
[1732735886901,335.61384,239.99,239.95,12.99425498]
[1732735887603,335.61384,239.99,239.96,2.0812]
[1732735890399,335.61384,239.99,239.92,9.99425498]
[1732735890705,335.61384,239.99,239.93,3.0]
[1732735891099,2.0812,239.96,239.93,3.0]
[1732735891306,335.61384,239.99,239.93,3.0]
[1732735892805,2.0812,239.97,239.93,5.0815]
[1732735893707,335.61384,239.99,239.93,3.0]
[1732735893904,2.0812,239.96,239.93,3.0]
[1732735894507,2.0812,239.96,239.93,5.0815]
[1732735894711,2.0814,239.94,239.93,3.0]
[1732735897014,2.0813,239.95,239.93,3.0]
[1732735899310,335.61384,239.99,239.93,3.0]
[1732735899613,335.61384,239.99,239.93,5.0815]
[1732735900409,2.0811,239.98,239.93,5.0815]
[1732735900614,335.61384,239.99,239.93,5.0815]
[1732735901117,2.0813,239.96,239.93,3.0]
[1732735902218,2.0813,239.95,239.93,3.0]
[1732735902618,335.61384,239.99,239.93,3.0]
[1732735902914,2.0813,239.96,239.93,3.0]
[1732735903513,335.61384,239.99,239.93,3.0]
[1732735904217,2.0814,239.95,239.93,3.0]
[1732735905923,2.0813,239.96,239.93,3.0]
[1732735906125,335.61384,239.99,239.93,3.0]
[1732735907725,337.69484,239.99,239.95,2.0812]
[1732735907920,335.61384,239.99,239.95,2.0812]
[1732735908324,335.61384,239.99,239.95,8.476634]
[1732735908821,2.0811,239.98,239.95,6.395434]
[1732735909628,335.61384,239.99,239.97,6.395434]
[1732735911022,335.61384,239.99,239.97,8.476534]
[1732735912427,335.61384,239.99,239.97,6.395434]
[1732735912820,2.0811,239.98,239.97,6.395434]
[1732735913525,2.0811,239.98,239.94,2.0813]
[1732735913723,2.0811,239.98,239.96,6.395434]
[1732735916329,335.61384,239.99,239.96,6.395434]
[1732735916330,337.69484,239.99,239.96,6.395434]
[1732735917124,337.69484,239.99,239.98,6.395434]
[1732735917330,335.61384,239.99,239.98,6.395434]
[1732735918226,335.61384,239.99,239.98,8.476534]
[1732735925237,159.02599407,239.99,239.98,8.476534]
[1732735925432,159.02599407,239.99,239.98,4.18443079]
[1732735925632,159.02599407,239.99,239.98,10.57986479]
[1732735925935,148.04253039,239.99,239.98,17.64043284]
[1732735926433,139.88253039,239.99,239.98,15.53710205]
[1732735926738,139.63373039,239.99,239.98,15.53710205]
[1732735927038,139.63373039,239.99,239.98,17.58131894]
[1732735927434,14.74521195,239.99,239.98,17.58131894]
[1732735927929,2.0799,240.12,240.08,2.0802]
[1732735928133,3.7611,240.2,240.09,9.195434]
[1732735928134,2.0798,240.13,240.09,9.195434]
[1732735929139,3.7611,240.2,240.09,9.195434]
[1732735929440,3.7611,240.2,240.13,6.395434]
[1732735929840,3.7611,240.2,240.12,2.0798]
[1732735930033,3.7611,240.2,240.12,8.475234]
[1732735931639,10.156534,240.2,240.12,6.395434]
[1732735931940,6.395434,240.16,240.13,0.7937]
[1732735932244,6.395434,240.16,240.01,4.41863935]
[1732735932245,2.0796,240.15,240.14,2.8]
[1732735932537,6.395434,240.18,240.13,2.8]
[1732735932942,10.156534,240.2,240.13,2.8]
[1732735933138,3.7611,240.2,240.15,6.395434]
[1732735933344,2.0794,240.18,240.15,6.395434]
[1732735933943,2.0793,240.19,240.15,8.475034]
[1732735934145,2.0793,240.19,240.17,6.395434]
[1732735934643,3.7611,240.2,240.17,6.395434]
[1732735934844,1.2409,240.2,240.19,6.395434]
[1732735935546,1.2409,240.2,240.17,6.395434]
[1732735936045,3.3201,240.2,240.17,6.395434]
[1732735936244,3.3201,240.2,240.16,2.0794]
[1732735937241,2.62,240.48,240.19,6.395434]
[1732735937442,2.62,240.48,240.06,12.5]
[1732735937443,2.5059,240.3,240.22,6.395434]
[1732735937749,1.319,240.29,240.23,2.62]
[1732735938149,2.0785,240.28,240.24,6.395434]
[1732735938344,1.319,240.29,240.24,6.395434]
[1732735938649,2.0786,240.27,240.23,2.62]
[1732735939250,1.319,240.29,240.23,2.62]
[1732735939449,2.0787,240.26,240.23,2.62]
[1732735939746,6.395434,240.27,240.23,2.62]
[1732735939950,7.714434,240.29,240.23,2.62]
[1732735940254,6.395434,240.28,240.2,6.395434]
[1732735940446,1.319,240.29,240.24,2.62]
[1732735940756,1.319,240.29,240.24,9.015434]
[1732735941049,2.5059,240.3,240.24,9.015434]
[1732735941552,2.5059,240.3,240.24,11.094134]
[1732735941553,2.0785,240.28,240.24,11.094134]
[1732735942143,2.0785,240.28,240.24,9.015434]
[1732735943244,6.395434,240.28,240.21,6.395434]
[1732735943448,6.395434,240.28,240.22,2.62]
[1732735943650,2.0786,240.27,240.23,2.62]
[1732735943849,6.395434,240.28,240.24,2.62]
[1732735945155,2.0787,240.26,240.24,2.62]
[1732735945653,6.395434,240.28,240.24,2.62]
[1732735945956,1.3213,240.29,240.24,2.62]
[1732735946158,2.0787,240.26,240.24,2.62]
[1732735946548,1.3213,240.29,240.24,2.62]
[1732735946760,2.0787,240.26,240.24,2.62]
[1732735946953,2.0787,240.26,240.25,2.62]
[1732735947857,6.395434,240.28,240.13,1.2254]
[1732735948052,6.395434,240.28,240.12,50.66998959]
[1732735948053,6.395434,240.25,240.17,6.395434]
[1732735948254,6.395434,240.25,240.17,8.474834]
[1732735948557,2.0792,240.21,240.18,2.62]
[1732735948753,2.0792,240.21,240.19,2.62]
[1732735948947,2.0789,240.23,240.19,2.62]
[1732735949660,2.0791,240.21,240.19,2.62]
[1732735950953,2.079,240.22,240.19,9.015434]
[1732735952356,6.395434,240.27,240.19,9.015434]
[1732735952557,2.0791,240.21,240.19,9.015434]
[1732735953364,6.395434,240.27,240.19,9.015434]
[1732735953565,2.079,240.22,240.19,9.015434]
[1732735953865,6.395434,240.27,240.19,9.015434]
[1732735954657,2.079,240.22,240.19,9.015434]
[1732735954862,1.3213,240.29,240.19,11.094634]
[1732735955067,7.716734,240.29,240.19,9.015434]
[1732735955764,2.0791,240.22,240.19,9.015434]
[1732735956065,7.716734,240.29,240.19,9.015434]
[1732735956469,2.079,240.22,240.19,9.015434]
[1732735958663,1.3213,240.29,240.21,6.395434]
[1732735958862,1.3213,240.29,240.23,6.395434]
[1732735959363,2.0786,240.27,240.23,6.395434]
[1732735959767,1.3213,240.29,240.23,6.395434]
[1732735960269,2.0785,240.28,240.24,2.0788]
[1732735960669,1.3213,240.29,240.23,6.395434]
[1732735960864,2.0786,240.27,240.23,6.395434]
[1732735961069,1.3213,240.29,240.19,2.62]
[1732735961261,2.0786,240.27,240.21,8.474434]
[1732735961467,6.395434,240.27,240.22,2.62]
[1732735961762,6.395434,240.27,240.23,2.62]
[1732735961962,6.395434,240.27,240.19,6.395434]
[1732735962159,6.395434,240.27,240.24,2.62]
[1732735962560,6.395434,240.27,240.24,0.6158]
[1732735962969,2.0791,240.21,240.19,6.395434]
[1732735963366,2.0791,240.21,240.2,2.62]
[1732735963667,1.3213,240.29,240.2,2.62]
[1732735963967,6.395434,240.27,240.2,2.62]
[1732735964964,7.716734,240.29,240.21,6.395434]
[1732735965170,2.0786,240.27,240.21,6.395434]
[1732735965466,6.395434,240.27,240.2,2.62]
[1732735965765,2.0791,240.21,240.2,2.62]
[1732735966370,6.395434,240.25,240.16,6.395434]
[1732735966371,2.0793,240.18,240.16,6.395434]
[1732735966667,2.0793,240.18,240.17,2.52]
[1732735967068,6.395434,240.25,240.17,2.52]
[1732735967368,2.0793,240.19,240.17,2.52]
[1732735969367,2.0792,240.2,240.18,6.395434]
[1732735970867,6.395434,240.26,240.18,6.395434]
[1732735971074,2.0792,240.19,240.18,6.395434]
[1732735971568,6.395434,240.26,240.18,6.395434]
[1732735971773,2.0792,240.2,240.18,6.395434]
[1732735972570,1.3213,240.29,240.18,6.395434]
[1732735972772,6.395434,240.28,240.18,6.395434]
[1732735973075,2.0792,240.2,240.18,6.395434]
[1732735973678,6.395434,240.28,240.18,6.395434]
[1732735974077,1.3213,240.29,240.18,6.395434]
[1732735974378,6.395434,240.28,240.18,6.395434]
[1732735974572,2.0787,240.25,240.18,6.395434]
[1732735974877,6.395434,240.28,240.18,6.395434]
[1732735975271,2.0792,240.19,240.17,2.52]
[1732735975473,2.0792,240.19,240.18,6.395434]
[1732735975878,2.0792,240.19,240.17,2.52]
[1732735976074,2.0792,240.19,240.17,8.915434]
[1732735978474,6.395434,240.26,240.17,8.915434]
[1732735978667,1.3213,240.29,240.23,6.395434]
[1732735978979,8.54722863,240.28,240.24,2.52]
[1732735979279,8.54902114,240.27,240.24,2.52]
[1732735979472,1.3213,240.29,240.24,2.52]
[1732735979668,8.5490152,240.28,240.24,2.52]
[1732735979869,1.3213,240.29,240.24,2.52]
[1732735979870,2.0787,240.25,240.24,2.52]
[1732735982882,1.3068,240.36,240.24,2.52]
[1732735983083,6.395434,240.34,240.26,6.395434]
[1732735983580,6.395434,240.32,240.24,2.52]
[1732735983782,6.395434,240.3,240.24,2.52]
[1732735984382,2.0787,240.25,240.24,2.52]
[1732735988879,6.395434,240.33,240.24,8.915434]
[1732735989077,6.395434,240.35,240.26,6.395434]
[1732735989582,2.0784,240.29,240.26,6.395434]
[1732735989988,2.0785,240.28,240.26,6.395434]
[1732735991490,6.395434,240.31,240.24,2.52]
[1732735992491,6.395434,240.31,240.24,8.915434]
[1732735992685,1.3068,240.36,240.24,8.915434]
[1732735992991,2.0785,240.28,240.24,8.915434]
[1732735993191,2.0785,240.28,240.26,6.395434]
[1732735993396,6.395434,240.32,240.24,8.915434]
[1732735993692,6.395434,240.32,240.24,10.994134]
[1732735993889,6.395434,240.33,240.24,10.994134]
[1732735994993,6.395434,240.33,240.24,8.474134]
[1732735995191,6.395434,240.33,240.25,2.52]
[1732735996200,2.0785,240.28,240.25,2.52]
[1732735996995,6.395434,240.35,240.26,6.395434]
[1732735997195,2.0784,240.3,240.26,6.395434]
[1732735997908,2.078,240.33,240.26,8.474034]
[1732735998204,7.702234,240.36,240.28,6.395434]
[1732735998398,8.54026179,240.35,240.28,8.473834]
[1732735998598,2.0782,240.31,240.28,6.395434]
[1732735999501,2.0783,240.3,240.28,6.395434]
[1732736000205,2.0782,240.31,240.28,6.395434]
[1732736000800,2.0782,240.31,240.27,2.0785]
[1732736000801,12.49,240.5,240.34,2.0779]
[1732736001106,6.395434,240.45,240.36,6.395434]
[1732736001302,8.53474818,240.44,240.37,2.46]
[1732736001505,6.395434,240.45,240.37,2.46]
[1732736002010,35.37883782,240.5,240.37,2.46]
[1732736002207,6.395434,240.43,240.37,2.46]
[1732736003009,2.0776,240.38,240.37,2.46]
[1732736021722,3.9236,240.5,240.37,2.46]
[1732736021918,6.395434,240.44,240.37,2.46]
[1732736022823,2.0776,240.39,240.37,2.46]
[1732736023426,2.0776,240.38,240.37,2.46]
[1732736028922,6.395434,240.42,240.33,6.395434]
[1732736029129,2.0779,240.35,240.34,2.38]
[1732736035532,2.0782,240.31,240.27,1.3113]
[1732736035727,2.0782,240.31,240.3,6.395434]
[1732736036426,2.0782,240.31,240.3,8.775434]
[1732736038036,7.8543,240.42,240.3,8.775434]
[1732736038232,2.078,240.34,240.33,6.395434]
[1732736039531,14.249734,240.42,240.33,6.395434]
[1732736039831,2.0779,240.36,240.3,2.38]
[1732736040236,2.0779,240.36,240.32,2.0781]
[1732736040438,2.0779,240.35,240.32,2.0781]
[1732736041035,2.0779,240.35,240.33,6.395434]
[1732736041740,2.0779,240.34,240.33,6.395434]
[1732736041936,2.0779,240.34,240.33,8.775434]
[1732736044343,2.4629,240.42,240.33,8.775434]
[1732736044539,2.0779,240.36,240.35,6.395434]
[1732736044746,8.858334,240.42,240.33,8.775434]
[1732736044939,8.55128528,240.41,240.33,8.775434]
[1732736045139,8.858334,240.42,240.33,8.775434]
[1732736045340,2.0779,240.34,240.33,8.775434]
[1732736046940,2.0779,240.34,240.33,2.38]
[1732736050651,2.0781,240.32,240.29,6.395434]
[1732736050846,6.395434,240.36,240.26,7.719134]
[1732736051152,1.2683,240.41,240.27,2.38]
[1732736051349,8.55645048,240.35,240.31,6.395434]
[1732736051549,8.55645048,240.34,240.3,6.395434]
[1732736051750,6.395434,240.39,240.3,6.395434]
[1732736051949,8.55265033,240.38,240.27,2.38]
[1732736052145,8.55265033,240.37,240.29,6.395434]
[1732736052745,6.395434,240.37,240.29,6.395434]
[1732736052952,2.0783,240.3,240.29,6.395434]
[1732736053951,6.395434,240.37,240.27,8.775434]
[1732736054157,8.54807754,240.36,240.27,8.775434]
[1732736054450,8.54807754,240.35,240.29,6.395434]
[1732736054653,6.395434,240.39,240.29,6.395434]
[1732736054954,8.54662629,240.38,240.29,6.395434]
[1732736055156,8.54662629,240.37,240.29,6.395434]
[1732736055352,8.54662629,240.36,240.27,2.38]
[1732736055657,14.94206029,240.35,240.27,2.38]
[1732736055853,8.54662629,240.34,240.28,2.38]
[1732736056054,8.54662629,240.33,240.29,2.38]
[1732736056356,6.395434,240.35,240.29,2.38]
[1732736056557,2.0783,240.3,240.29,2.38]
[1732736057356,6.395434,240.35,240.29,2.36]
[1732736057553,8.54086958,240.34,240.29,2.36]
[1732736057748,6.395434,240.35,240.29,2.36]
[1732736058355,1.2683,240.41,240.29,2.36]
[1732736058556,6.395434,240.36,240.29,2.36]
[1732736058752,8.53891067,240.35,240.29,2.36]
[1732736058952,2.0783,240.3,240.29,2.36]
[1732736061265,2.0783,240.3,240.29,8.755434]
[1732736064766,2.0783,240.3,240.29,2.36]
[1732736066762,2.0782,240.32,240.28,2.36]
[1732736066962,6.395434,240.33,240.28,2.36]
[1732736067268,7.679734,240.33,240.28,2.36]
[1732736067465,2.0784,240.29,240.28,2.36]
[1732736068865,6.395434,240.32,240.25,6.395434]
[1732736069177,2.0786,240.26,240.25,6.395434]
[1732736069467,2.0786,240.26,240.25,8.755434]
[1732736078272,2.0785,240.28,240.25,10.834134]
[1732736078572,1.2424,240.41,240.27,6.395434]
[1732736078775,2.0778,240.36,240.35,6.395434]
[1732736078970,2.0778,240.36,240.35,8.755434]
[1732736079174,2.0778,240.36,240.35,2.36]
[1732736082874,6.395434,240.38,240.07,215.55860828]
[1732736082875,2.0783,240.3,240.29,6.395434]
[1732736083076,2.0783,240.3,240.29,8.755434]
[1732736083974,2.0783,240.3,240.29,2.36]
[1732736084174,6.395434,240.35,240.29,2.36]
[1732736084578,6.395434,240.33,240.29,2.36]
[1732736084881,2.0783,240.3,240.29,2.36]
[1732736089584,2.0789,240.23,240.19,2.0792]
[1732736089780,2.0789,240.23,240.22,8.675434]
[1732736094384,2.0789,240.23,240.22,2.28]
[1732736094885,2.5678,240.35,240.15,4.44392171]
[1732736094886,2.0793,240.19,240.15,4.44392171]
[1732736095077,4.1567,240.3,240.18,6.395434]
[1732736095283,4.1567,240.3,240.19,2.28]
[1732736095284,2.0792,240.2,240.19,2.28]
[1732736096385,2.0792,240.2,240.19,8.675434]
[1732736099382,6.395434,240.26,240.14,27.34084574]
[1732736099587,2.0796,240.15,240.14,33.73627974]
[1732736099785,2.0796,240.15,240.14,8.675434]
[1732736100184,6.395434,240.2,240.09,2.63557102]
[1732736100389,2.08,240.11,240.1,6.72281005]
[1732736100588,2.08,240.11,240.1,8.675434]
[1732736101191,2.08,240.11,240.1,6.395434]
[1732736101588,2.08,240.11,240.1,2.28]
[1732736102586,6.395434,240.16,240.08,6.395434]
[1732736102794,6.395434,240.18,240.1,6.395434]
[1732736102992,6.395434,240.16,240.11,2.28]
[1732736103388,2.0798,240.12,240.08,6.395434]
[1732736103688,6.395434,240.14,240.08,2.28]
[1732736104096,2.0801,240.09,240.08,2.28]
[1732736105489,6.395434,240.1,239.97,4.43996923]
[1732736105697,6.4389,240.18,240.0,6.395434]
[1732736105994,6.395434,240.08,240.0,6.395434]
[1732736106195,2.0808,240.01,240.0,6.395434]
[1732736106386,2.0808,240.01,240.0,8.675434]
[1732736106990,2.0808,240.01,240.0,2.28]
[1732736107190,2.0808,240.01,240.0,8.675434]
[1732736108392,2.0808,240.01,239.98,6.395434]
[1732736108590,2.081,239.99,239.98,6.395434]
[1732736108794,2.081,239.99,239.98,8.675434]
[1732736113998,2.0811,239.97,239.96,6.395434]
[1732736114195,2.0811,239.97,239.96,8.675434]
[1732736117604,6.395434,240.02,239.86,4.4204719]
[1732736117798,6.395434,239.98,239.83,5.08848837]
[1732736118004,6.395434,239.98,239.9,6.395434]
[1732736118195,6.395434,239.98,239.91,2.26]
[1732736118399,2.0816,239.92,239.91,2.26]
[1732736118601,3.5263,240.06,239.91,2.26]
[1732736118602,6.395434,239.96,239.91,2.26]
[1732736118800,1.2707,239.97,239.91,2.26]
[1732736119001,2.0816,239.92,239.91,2.26]
[1732736123898,7.666134,239.97,239.86,6.395434]
[1732736123899,2.082,239.87,239.86,6.395434]
[1732736124098,2.082,239.87,239.86,2.28]
[1732736125001,2.082,239.87,239.86,8.675434]
[1732736126103,2.4598,239.96,239.86,8.675434]
[1732736126306,2.4598,239.96,239.9,6.395434]
[1732736127504,2.0817,239.91,239.9,6.395434]
[1732736127705,6.395434,239.96,239.88,6.395434]
[1732736127912,6.395434,239.94,239.86,2.28]
[1732736128104,2.082,239.87,239.86,2.28]
[1732736130104,6.395434,239.93,239.85,6.395434]
[1732736130313,2.0821,239.86,239.85,6.395434]
[1732736130510,2.0821,239.86,239.85,8.675434]
[1732736131609,2.0819,239.89,239.85,10.757634]
[1732736131805,2.0819,239.89,239.88,6.395434]
[1732736132318,6.395434,239.95,239.86,6.395434]
[1732736132506,2.0821,239.87,239.86,6.395434]
[1732736133315,2.0823,239.84,239.82,32.46]
[1732736133514,6.395434,239.83,239.65,17.26213589]
[1732736133708,2.28,239.86,239.68,4.40736073]
[1732736133905,2.28,239.86,239.67,6.395434]
[1732736133906,6.395434,239.78,239.69,2.75530568]
[1732736134107,6.395434,239.78,239.7,5.03530568]
[1732736134311,6.395434,239.78,239.7,2.28]
[1732736134806,2.083,239.76,239.7,2.28]
[1732736135013,12.49,239.91,239.71,6.395434]
[1732736135014,2.28,239.91,239.71,6.395434]
[1732736135310,2.28,239.91,239.74,6.395434]
[1732736135613,6.395434,239.83,239.75,2.28]
[1732736135816,2.0829,239.77,239.75,2.28]
[1732736139114,6.395434,239.89,239.76,6.395434]
[1732736139317,6.395434,239.89,239.8,6.395434]
[1732736139612,6.395434,239.89,239.81,2.28]
[1732736140014,2.0825,239.82,239.81,2.28]
[1732736140211,2.28,239.96,239.81,2.28]
[1732736140414,6.395434,239.91,239.82,6.395434]
[1732736140715,2.0823,239.84,239.82,6.395434]
[1732736141014,6.395434,239.84,239.77,2.28]
[1732736142412,2.0828,239.78,239.77,2.28]
[1732736144416,6.395434,239.82,239.73,6.395434]
[1732736144617,2.0831,239.75,239.74,2.28]
[1732736145821,6.395434,239.84,239.74,2.28]
[1732736146012,6.395434,239.82,239.75,6.395434]
[1732736146414,2.083,239.76,239.75,6.395434]
[1732736147219,2.0831,239.75,239.74,2.28]
[1732736147420,2.0831,239.75,239.74,8.675434]
[1732736148417,2.0831,239.75,239.74,11.31914851]
[1732736148827,2.083,239.76,239.74,11.31914851]
[1732736149020,2.28,239.9,239.74,8.675434]
[1732736149219,6.395434,239.84,239.76,6.395434]
[1732736149415,1.401,239.95,239.82,6.395434]
[1732736149621,6.395434,239.9,239.83,2.28]
[1732736149918,8.477734,239.84,239.75,1.3064]
[1732736150118,6.395434,239.82,239.79,2.28]
[1732736150319,6.395434,239.82,239.78,2.28]
[1732736151417,2.0827,239.79,239.78,2.28]
[1732736160628,2.0826,239.8,239.78,2.28]
[1732736161328,10.01015319,239.91,239.78,2.28]
[1732736161525,2.0827,239.79,239.78,2.28]
[1732736162732,10.01015319,239.91,239.78,2.28]
[1732736163035,2.0826,239.8,239.78,2.28]
[1732736163931,10.01015319,239.91,239.78,2.28]
[1732736165229,2.0827,239.8,239.78,2.28]
[1732736167332,2.0827,239.79,239.78,2.28]
[1732736168636,4.1634,239.92,239.78,12.29015319]
[1732736168843,4.1634,239.92,239.79,2.4563]
[1732736169045,4.1634,239.92,239.79,4.5389]
[1732736169245,2.0824,239.83,239.79,2.4563]
[1732736169447,4.1634,239.92,239.79,2.4563]
[1732736169448,10.01015319,239.91,239.79,2.4563]
[1732736170549,2.0826,239.8,239.79,2.4563]
[1732736172049,2.0826,239.8,239.79,4.7363]
[1732736172245,2.0826,239.8,239.79,2.28]
[1732736172753,6.40634137,239.82,239.72,1.2642]
[1732736172941,6.40634137,239.82,239.74,6.40634137]
[1732736173348,2.0831,239.74,239.73,2.28]
[1732736173748,2.0831,239.74,239.73,8.68634137]
[1732736175552,2.0831,239.74,239.73,2.28]
[1732736175753,2.0831,239.74,239.73,8.68634137]
[1732736178251,2.0831,239.74,239.73,6.40634137]
[1732736178442,2.0831,239.74,239.73,8.66634137]
[1732736183456,2.0831,239.74,239.73,2.26]
[1732736186150,4.1638,239.89,239.73,2.26]
[1732736186347,6.40634137,239.87,239.79,6.40634137]
[1732736186547,5.5637,239.95,239.85,6.40634137]
[1732736186757,6.40634137,239.92,239.85,6.40634137]
[1732736187051,8.55145309,239.91,239.84,2.26]
[1732736187252,6.40634137,239.9,239.84,2.26]
[1732736187552,8.55145309,239.89,239.84,2.26]
[1732736187854,2.0822,239.85,239.84,2.26]
[1732736189654,2.0822,239.85,239.84,8.66634137]
[1732736190452,1.3214,239.95,239.84,8.66634137]
[1732736190649,12.49,240.03,239.88,6.40634137]
[1732736190650,8.55260719,239.94,239.88,6.40634137]
[1732736190853,8.55260719,239.93,239.92,6.40634137]
[1732736191051,6.40634137,240.01,239.92,8.66634137]
[1732736191552,6.40634137,239.99,239.92,8.66634137]
[1732736191754,8.55368434,239.98,239.92,8.66634137]
[1732736191963,2.0813,239.93,239.92,8.66634137]
[1732736193252,2.0813,239.93,239.92,2.26]
[1732736194360,2.0813,239.93,239.88,2.26]
[1732736194361,2.0816,239.89,239.88,2.26]
[1732736194560,4.1613,240.01,239.88,2.26]
[1732736194761,6.40634137,239.95,239.88,2.26]
[1732736195360,8.53469791,239.94,239.88,2.26]
[1732736195664,2.0819,239.86,239.85,6.40634137]
[1732736195967,6.40634137,239.97,239.85,8.66634137]
[1732736196166,8.53449509,239.96,239.9,6.40634137]
[1732736196466,6.40634137,239.99,239.91,2.26]
[1732736196668,8.53083261,239.98,239.91,2.26]
[1732736196865,8.53120902,239.97,239.91,2.26]
[1732736197161,6.40634137,239.99,239.91,2.26]
[1732736197362,8.5282938,239.98,239.91,2.26]
[1732736197562,6.40634137,239.99,239.91,2.26]
[1732736197758,2.0814,239.92,239.91,2.26]
[1732736198868,4.1599,240.09,239.91,2.26]
[1732736199072,9.14642058,240.08,239.98,6.40634137]
[1732736199265,9.14642058,240.07,240.0,6.40634137]
[1732736199460,9.14642058,240.06,240.0,8.66634137]
[1732736199660,8.52501451,240.05,240.0,8.66634137]
[1732736199872,8.52501451,240.04,240.0,2.26]
[1732736200070,6.40634137,240.07,240.0,2.26]
[1732736200266,2.0806,240.01,240.0,2.26]
[1732736211265,9.99087829,240.11,240.0,2.26]
[1732736211478,2.0804,240.03,240.0,2.26]
[1732736211673,10.06337829,240.14,240.0,2.26]
[1732736211875,9.10603344,240.13,240.0,2.26]
[1732736212071,8.48484015,240.12,240.0,2.26]
[1732736212376,10.06337829,240.14,240.0,2.26]
[1732736212573,2.0799,240.1,240.0,2.26]
[1732736212766,10.06337829,240.14,240.0,2.26]
[1732736212970,9.10342887,240.13,240.0,2.26]
[1732736213268,9.99087829,240.11,240.0,2.26]
[1732736213980,8.48138758,240.1,240.0,2.26]
[1732736214373,9.99087829,240.11,240.0,2.26]
[1732736215076,2.0806,240.01,240.0,2.26]
[1732736222677,2.0806,240.01,240.0,8.65268194]
[1732736223582,0.0725,240.14,240.0,10.73338194]
[1732736223583,2.0804,240.04,240.0,10.73338194]
[1732736223784,6.39268194,240.14,240.03,6.39268194]
[1732736223983,6.39268194,240.14,240.07,6.39268194]
[1732736224286,2.0799,240.09,240.08,2.26]
[1732736225383,2.0791,240.19,240.08,2.26]
[1732736225582,6.39268194,240.27,240.18,6.39268194]
[1732736225786,6.39268194,240.27,240.18,8.65268194]
[1732736225984,6.39268194,240.25,240.18,8.65268194]
[1732736226185,6.39268194,240.25,240.18,2.26]
[1732736226784,2.079,240.19,240.18,8.65268194]
[1732736227287,2.079,240.2,240.18,8.65268194]
[1732736227688,6.39268194,240.27,240.18,8.65268194]
[1732736228390,2.079,240.2,240.18,8.65268194]